Cogmind - Beta 14 @@@ ROGUE MODE // 2024.11.29 @ 09:35:08 Player: human Result: Destroyed by C-17 Slicer with Blade Saw Performance ------------- Evolutions (3) 1500 Regions Visited (5) 1000 Robots Destroyed (24) 120 Value Destroyed (368) 368 Prototype IDs (5) 100 Alien Tech Used (0) 0 Bonus (0) 0 TOTAL SCORE: 3088 Bonus ------- None Cogmind --------- Core Integrity 0/700 Matter 63/300 Energy 100/100 System Corruption 3% Temperature Cool (0) Movement Core (50) Location -7/Factory Parts ------- > --- POWER (2) -------- (None) > --- PROPULSION (5) --- Armored Huge Wheel > --- UTILITY (3) ------ Advanced Targeting Computer > --- WEAPON (3) ------- (None) > --- INVENTORY (5) ---- Relay Coupler [Swarmer] (23) Lightning Gun Improved Grenade Launcher Improved Datajack Spear Peak State ------------ > --- POWER ------------ Micro Nuclear Core > --- PROPULSION ------- Armored Huge Wheel Cesium-ion Thruster Xenon Bombardment Thruster Cooled VTOL Module > --- UTILITY ---------- Advanced Targeting Computer > --- WEAPON ----------- (None) > --- INVENTORY -------- Light Nuclear Core Relay Coupler [Swarmer] Lightning Gun Improved Grenade Launcher Improved Datajack [Rating: 28] Favorites ----------- Power Improved Ion Engine Engine Improved Ion Engine Power Core Micro Nuclear Core Propulsion VTOL Module Treads Light Treads Leg Aluminum Leg Wheel Wheel Flight Unit VTOL Module Utility Small Storage Unit Device Seismic Detector Storage Small Storage Unit Processor Signal Interpreter Weapon Light Assault Rifle Energy Gun Gatling Laser Ballistic Gun Light Assault Rifle Launcher Rocket Launcher Slashing Weapon Makeshift Axe Build | -11 -10 -10 -9 -8 -7 ------- Run | Yrd Mat Min Mat Mat Fac Slots Evolved 6 | . . . 2 2 2 Power 1 | . . . . . 1 Propulsion 3 | . . . 2 . 1 Utility 1 | . . . . 1 . Weapon 1 | . . . . 1 . Parts Attached 56 | 6 3 11 15 1 20 Power 7 | 1 . 1 3 . 2 Engine 6 | 1 . 1 3 . 1 Core 1 | . . . . . 1 Reactor . | . . . . . . Propulsion 29 | 2 2 4 7 1 13 Treads 2 | . . . 2 . . Leg 1 | . . . 1 . . Wheel 7 | 2 . 1 . . 4 Hover . | . . . . . . Flight 19 | . 2 3 4 1 9 Utility 5 | 1 1 . 1 . 2 Device 1 | . . . . . 1 Storage 1 | 1 . . . . . Processor 3 | . 1 . 1 . 1 Hackware . | . . . . . . Protection . | . . . . . . Artifact . | . . . . . . Weapon 15 | 2 . 6 4 . 3 Energy Gun 1 | . . . . . 1 Energy Cannon . | . . . . . . Ballistic Gun 8 | 2 . 3 2 . 1 Ballistic Cannon . | . . . . . . Launcher 5 | . . 3 1 . 1 Special Weapon . | . . . . . . Impact Weapon . | . . . . . . Slashing Weapon 1 | . . . 1 . . Piercing Weapon . | . . . . . . Special Melee Weapon . | . . . . . . Unidentified Prototypes 3 | . . . . . 3 Parts Lost 30 | . 2 5 3 1 19 Power 3 | . 1 . . . 2 Propulsion 22 | . 1 5 1 1 14 Utility 2 | . . . . . 2 Weapon 3 | . . . 2 . 1 Highest Loss Streak 10 | . 1 3 2 1 10 To Critical Strikes . | . . . . . . Average Slot Usage (%) 66 | . 87 85 73 72 46 Engine 3 | . 8 2 2 9 2 Treads 2 | . . . 9 . . Leg 1 | . . . 7 . . Wheel 3 | . 14 . 4 . 3 Flight 19 | . 8 24 13 36 20 Device 1 | . . . . . 3 Storage 8 | . 14 14 11 9 3 Processor 10 | . 12 14 10 9 7 Ballistic Gun 9 | . 28 25 4 . . Slashing Weapon 3 | . . . 8 9 2 Peak Build Rating 28 | 6 7 9 17 17 28 Average Rating 11 | 3 6 6 11 16 16 On Entrance 8 | . 6 6 6 17 17 Naked Turns . | . . . . . . Heaviest Build 19 | 13 13 10 15 15 19 Greatest Support 20 | 20 20 10 16 16 20 Greatest Overweight (x) 2 | . 1 2 . . 1 Average Overweight (x) . | . . . . . . Largest Inventory Capacity 8 | 8 8 8 8 8 8 Average Capacity 7 | 6 8 8 8 8 6 Most Carried 8 | 5 4 8 8 8 8 Average Carried 6 | 1 1 6 6 7 6 Final Capacity 8 | 8 8 8 8 8 5 Final Carried 8 | . 4 6 7 8 5 Class Distribution -------------------- 66% | Mutant 29% | Sprinter 3% | Scavenger-Mutant Dominant Class ---------------- Mutant | -10/Materials Mutant | -10/Mines Mutant | -9/Materials Sprinter | -8/Materials Mutant | -7/Factory Resources | -11 -10 -10 -9 -8 -7 ----------- Run | Yrd Mat Min Mat Mat Fac Matter Collected 483 | 195 109 74 59 . 46 Remotely . | . . . . . . Salvage Created 344 | . 124 67 153 . . Parts 36 | . 5 9 22 . . Haulers Intercepted . | . . . . . . Recyclers Shooed . | . . . . . . Parts Field Recycled . | . . . . . . Retrieved Matter . | . . . . . . Parts Self-Destructed . | . . . . . . Prevented . | . . . . . . Kills | -11 -10 -10 -9 -8 -7 ------- Run | Yrd Mat Min Mat Mat Fac Combat Hostiles Destroyed 22 | . 4 9 9 . . Melee 1 | . . . 1 . . Guns 8 | . 4 3 1 . . AOE 13 | . . 6 7 . . Classes Destroyed 4 | . 2 . 2 . . Watcher 2 | . . . 2 . . Swarmer 19 | . 2 9 8 . . Grunt 2 | . 2 . . . . Sentry 1 | . . . 1 . . Best Kill Streak 11 | . 2 3 11 . . Combat Bots Only 8 | . 2 3 8 . . Max Kills in Single Turn 4 | . 1 3 4 . . Gunslinging . | . . . . . . Exploded 4 | . . 3 4 . . Melee 1 | . . . 1 . . Uniques/NPCs Destroyed . | . . . . . . Combat | -11 -10 -10 -9 -8 -7 -------- Run | Yrd Mat Min Mat Mat Fac Hostile Shots Fired 428 | . 24 41 62 16 285 Missed 215 | . 7 13 22 6 167 Damage Taken 2734 | . 231 354 467 151 1531 Core 1037 | . 44 95 149 44 705 Absorbed by Shields . | . . . . . . Core Remaining (%) 74 | 100 . 44 62 92 . Volleys Fired 28 | . 13 8 7 . . Largest 2 | . 2 2 2 . . Hottest 53 | . 40 53 53 . . Shots Fired 54 | . 26 14 14 . . Gun 46 | . 26 8 12 . . Cannon . | . . . . . . Launcher 8 | . . 6 2 . . Special . | . . . . . . Kinetic 46 | . 26 8 12 . . Thermal . | . . . . . . Explosive 8 | . . 6 2 . . Electromagnetic . | . . . . . . Robot Hit Streak 5 | . 5 3 3 . . Robot Miss Streak 5 | . 3 2 5 . . Penetration Max . | . . . . . . Secondary Targets . | . . . . . . Shots Hit Robots 31 | . 17 6 8 . . Core Hits 27 | . 7 8 10 . 2 Critical Kills . | . . . . . . Critical Parts Destroyed . | . . . . . . Critical Strikes 1 | . . . 1 . . Sever 1 | . . . 1 . . Melee Attacks 15 | . . . 10 2 3 Impact . | . . . . . . Slashing 15 | . . . 10 2 3 Piercing . | . . . . . . Sneak Attacks . | . . . . . . Combat Hostiles . | . . . . . . Follow-up Attacks . | . . . . . . Damage Inflicted 1141 | . 162 465 471 . 43 Guns 242 | . 162 36 44 . . Cannons . | . . . . . . Explosions 755 | . . 429 326 . . Melee 101 | . . . 101 . . Ramming 43 | . . . . . 43 Kinetic 242 | . 162 36 44 . . Thermal . | . . . . . . Explosive 755 | . . 429 326 . . Electromagnetic . | . . . . . . Impact . | . . . . . . Slashing 101 | . . . 101 . . Piercing . | . . . . . . Highest Corruption 3 | . . . . . 3 Average Corruption 2 | . . . . . 2 Corruption Purged . | . . . . . . Corruption Blocked . | . . . . . . Overload Shots . | . . . . . . Overflow Damage 90 | . . 46 44 . . Projectiles . | . . . . . . Explosions 90 | . . 46 44 . . Melee . | . . . . . . Knockbacks . | . . . . . . Impact . | . . . . . . Kinetic . | . . . . . . Secondary . | . . . . . . Self-Inflicted Damage 73 | . . 56 . . 17 Shots 2 | . . 2 . . . Rammed 15 | . . . . . 15 Targets Rammed 15 | . . . . . 15 Kicked . | . . . . . . Crushed . | . . . . . . Highest Temperature 34 | . 34 6 19 22 16 Average Temperature 9 | . 13 3 5 9 9 Received Heat Transfer 792 | . 129 102 162 81 318 Siege Activations . | . . . . . . Robots Corrupted . | . . . . . . Combat Hostiles . | . . . . . . Parts Fried . | . . . . . . Impact Corruptions . | . . . . . . Robots Melted . | . . . . . . Combat Hostiles . | . . . . . . Parts Melted . | . . . . . . Heat Transferred . | . . . . . . Parts Sabotaged . | . . . . . . Parts Stolen . | . . . . . . Parts Stripped . | . . . . . . Power Chain Reactions . | . . . . . . Alert | -11 -10 -10 -9 -8 -7 ------- Run | Yrd Mat Min Mat Mat Fac Peak Influence 574 | . 130 389 574 183 396 Initial 148 | . . 50 139 148 56 Average 205 | . 59 234 353 104 162 Maximum Alert Level 2 | . . 1 2 . 1 Low Security (%) 56 | 100 100 44 12 100 69 Level 1 39 | . . 55 64 . 30 Level 2 4 | . . . 22 . . Level 3 . | . . . . . . Level 4 . | . . . . . . Level 5 . | . . . . . . High Security . | . . . . . . Max Security . | . . . . . . Squads Dispatched 10 | . . . 1 2 7 Investigation 4 | . . . . . 4 Extermination . | . . . . . . Reinforcement 5 | . . . 1 2 2 Assault 1 | . . . . . 1 Garrison . | . . . . . . Intercept . | . . . . . . Searches Triggered . | . . . . . . Construction Impeded . | . . . . . . Haulers Reinforced . | . . . . . . Active Scanning Responses . | . . . . . . Cargo Convoy Interrupts . | . . . . . . Stealth | -11 -10 -10 -9 -8 -7 --------- Run | Yrd Mat Min Mat Mat Fac Distress Signals 3 | . . . 1 2 . Communications Jammed . | . . . . . . Distress Signals . | . . . . . . Times Spotted 102 | . 7 13 29 14 39 Peak Tracking Total 14 | . 3 3 12 11 14 Tactical Retreats 19 | . 1 1 6 1 10 Traps | -11 -10 -10 -9 -8 -7 ------- Run | Yrd Mat Min Mat Mat Fac Traps Triggered 4 | . . . 2 . 2 Indirectly . | . . . . . . Trap Hack Attempts . | . . . . . . Triggered . | . . . . . . Disarmed . | . . . . . . Reprogrammed . | . . . . . . Reused . | . . . . . . Traps Extracted . | . . . . . . Installed . | . . . . . . Triggered . | . . . . . . Machines | -11 -10 -10 -9 -8 -7 ---------- Run | Yrd Mat Min Mat Mat Fac Machines Disabled 2 | . 1 1 . . . Max in Single Turn 1 | . 1 1 . . . Garrison Access 1 | . . . . . 1 Machines Repaired . | . . . . . . Machines Dismantled . | . . . . . . Machines Sabotaged . | . . . . . . Overloaded Fab Kills . | . . . . . . Hacking | -11 -10 -10 -9 -8 -7 --------- Run | Yrd Mat Min Mat Mat Fac Machines Accessed 16 | . 1 . 7 3 5 Terminals 14 | . 1 . 6 3 4 Fabricators 1 | . . . . . 1 Repair Stations . | . . . . . . Recycling Units . | . . . . . . Scanalyzers 1 | . . . 1 . . Garrison Access . | . . . . . . Total Hacks 35 | . 2 . 17 7 9 Successful 14 | . 1 . 7 2 4 Failed 21 | . 1 . 10 5 5 Catastrophic 6 | . . . 4 . 2 Database Lockouts . | . . . . . . Manual 16 | . . . 10 2 4 Terminals 31 | . 2 . 15 7 7 Fabricators 2 | . . . . . 2 Repair Stations . | . . . . . . Recycling Units . | . . . . . . Scanalyzers 2 | . . . 2 . . Garrison Access . | . . . . . . Terminal Hacks 10 | . 1 . 5 2 2 Robot Analysis 1 | . . . . . 1 Prototype ID Bank 1 | . . . 1 . . Alert Level 3 | . 1 . 2 . . Unreport Threat 4 | . . . 2 1 1 Zone Layout 1 | . . . . 1 . Fabricator Hacks 2 | . . . . . 2 Load Schematic 1 | . . . . . 1 Build 1 | . . . . . 1 Repair Station Hacks . | . . . . . . Recycling Unit Hacks . | . . . . . . Scanalyzer 2 | . . . 2 . . Insert Component 1 | . . . 1 . . Analyze 1 | . . . 1 . . Garrison Access Hacks . | . . . . . . Unauthorized Hacks . | . . . . . . Terminals . | . . . . . . Fabricators . | . . . . . . Repair Stations . | . . . . . . Recycling Units . | . . . . . . Scanalyzers . | . . . . . . Garrison Access . | . . . . . . Data Cores Recovered . | . . . . . . Used . | . . . . . . Hacking Detections 16 | . 1 . 7 3 5 Full Trace Events 3 | . . . . . 3 Feedback Events . | . . . . . . Feedback Blocked . | . . . . . . Robot Schematics Acquired . | . . . . . . Robots Built . | . . . . . . Authchips . | . . . . . . Time . | . . . . . . Total Robot Build Rating . | . . . . . . Part Schematics Acquired 1 | . . . 1 . . Parts Built 2 | . . . . . 2 Authchips . | . . . . . . Time 62 | . . . . . 62 Total Part Build Rating 4 | . . . . . 4 Parts Repaired . | . . . . . . Time . | . . . . . . Parts Recycled . | . . . . . . Recycled Matter . | . . . . . . Retrieved Matter . | . . . . . . Retrieved Components . | . . . . . . Parts Scanalyzed 1 | . . . 1 . . Part Schematics Acquired 1 | . . . 1 . . Parts Damaged . | . . . . . . Bothacking | -11 -10 -10 -9 -8 -7 ------------ Run | Yrd Mat Min Mat Mat Fac Used RIF Installer . | . . . . . . Robots Hacked . | . . . . . . Non-combat . | . . . . . . Combat . | . . . . . . Robot Hacks Applied . | . . . . . . Relay Couplers Released 1 | . . . . . 1 Machine Destruction 1 | . . . . . 1 Fabnet Peak Effective % . | . . . . . . Robots Rewired . | . . . . . . Allies Hacked . | . . . . . . Hacks Repelled . | . . . . . . Allies | -11 -10 -10 -9 -8 -7 -------- Run | Yrd Mat Min Mat Mat Fac Total Allies . | . . . . . . Largest Group . | . . . . . . Highest-Rated Group . | . . . . . . Highest-Rated Ally . | . . . . . . Total Orders . | . . . . . . Ally Attacks . | . . . . . . Total Damage . | . . . . . . Kills . | . . . . . . Allies Corrupted . | . . . . . . Allies Melted . | . . . . . . Intel | -11 -10 -10 -9 -8 -7 ------- Run | Yrd Mat Min Mat Mat Fac Robot Analysis Total 1 | . . . . . 1 Derelict Logs Recovered 1 | . . 1 . . . Drone Launches . | . . . . . . Drone Recoveries . | . . . . . . Exploration | -11 -10 -10 -9 -8 -7 ------------- Run | Yrd Mat Min Mat Mat Fac Turns Passed 1551 | 42 130 364 337 62 616 Spaces Moved 2910 | 42 147 665 478 198 1380 Core 189 | 16 . . . . 173 Treads . | . . . . . . Legs 115 | . . . 115 . . Wheels 209 | 26 59 29 62 . 33 Hover . | . . . . . . Flight 2397 | . 88 636 301 198 1174 Fastest Speed 23 | 50 37 37 26 26 23 Average Speed 42 | 68 56 47 55 26 36 Slowest Speed 200 | 80 95 200 120 26 115 Overloaded Moves . | . . . . . . Propulsion Burnouts . | . . . . . . Robots Hopped 31 | . . 13 4 6 8 Cave-ins Triggered . | . . . . . . Exploration Rate (%) 46 | 3 34 98 70 32 43 Regions Visited 5 Branch Regions 1 Pre-discovered Areas 1 | . . 1 . . . Known Exits Taken 4 | . 1 1 1 1 . Unknown Exits Taken 1 | 1 . . . . . Scrap Searched 1 | . . 1 . . . Spaces Dug 11 | . . . 6 2 3 Terrain Destroyed 86 | . . 63 18 2 3 Melee 11 | . . . 6 2 3 Projectile . | . . . . . . AOE 75 | . . 63 12 . . Terrain Rammed . | . . . . . . Walls Destroyed . | . . . . . . Machines Disabled . | . . . . . . Actions | -11 -10 -10 -9 -8 -7 --------- Run | Yrd Mat Min Mat Mat Fac Total 3110 | 55 168 684 520 200 1483 Wait 30 | . . 6 1 . 23 Move 2846 | 41 146 641 469 185 1364 Hop 28 | . . 10 4 6 8 Pick Up 51 | 7 6 6 11 4 17 Fast Attach 13 | . . 1 3 . 9 Attach 32 | 6 2 4 9 1 10 Detach 4 | . . 1 . . 3 Swap 11 | . 1 6 3 . 1 Drop 19 | 1 . 1 3 2 12 Fire 28 | . 13 8 7 . . Melee 15 | . . . 10 2 3 Ram 15 | . . . . . 15 Kick . | . . . . . . Crush . | . . . . . . Escape Stasis 18 | . . . . . 18 Rewire . | . . . . . . Trap . | . . . . . . Miscellaneous . | . . . . . . Route ------- -11/Scrapyard -10/Materials (discovered 2 exits: *Mat / *Min) -10/Mines (discovered 2 exits: *Mat x2) -9/Materials -8/Materials (discovered 2 exits: *Fac / *Sto) -7/Factory History --------- Turn | Location | Event 2 | -11/Scrapyard | Met Revision 17 13 | -11/Scrapyard | Discovered new exit (range 15) 43 | -11/Scrapyard | Entered Materials 117 | -10/Materials | Discovered new exit (range 6) 122 | -10/Materials | Identified exit to Materials 165 | -10/Materials | Discovered new exit (range 15) 172 | -10/Materials | Identified exit to Mines 173 | -10/Materials | Entered Mines 204 | -10/Mines | A weapon hastily lodged in a ceiling crevice suddenly fell to the ground 235 | -10/Mines | Discovered exit to Materials (range 10) 245 | -10/Mines | Received a Rocket Launcher from a helpful Derelict 281 | -10/Mines | Learned Materials interactive machine intel 305 | -10/Mines | Build established: Mutant 329 | -10/Mines | Discovered exit to Materials (range 5) 469 | -10/Mines | Learned location of Storage (-8) 490 | -10/Mines | Core integrity fell below 50% 537 | -10/Mines | Entered Materials 537 | -9/Materials | Evolved 2 slots: Propulsion x2 538 | -9/Materials | Loaded intel: 17 interactive machine locations 550 | -9/Materials | Lost 3 parts (3n) 607 | -9/Materials | Destroyed 8 combat bots 862 | -9/Materials | Discovered new exit (range 13) 869 | -9/Materials | Identified exit to Materials 874 | -9/Materials | Entered another Materials area 874 | -8/Materials | Evolved 2 slots: Utility x1, Weapon x1 878 | -8/Materials | Discovered new exit (range 9) 879 | -8/Materials | Identified exit to Storage 934 | -8/Materials | Discovered new exit (range 6) 935 | -8/Materials | Identified exit to Factory 936 | -8/Materials | Entered Factory 936 | -7/Factory | Evolved 2 slots: Power x1, Propulsion x1 1036 | -7/Factory | Fabricated VTOL Module (x2) 1073 | -7/Factory | Build established: Sprinter 1167 | -7/Factory | Lost 3 parts (1p2n) 1290 | -7/Factory | Core integrity fell below 50% 1320 | -7/Factory | Lost 10 parts (8n2u) 1418 | -7/Factory | Noticed a derelict Sapper rigging charges 1427 | -7/Factory | Core integrity fell below 20% 1524 | -7/Factory | Build established: Mutant 1552 | -7/Factory | Destroyed by C-17 Slicer with Blade Saw Last Messages --------------- F003. Dispatching Investigation squad. 01533_ C-17 Slicer knocked back. 01533_ Knocked back. 01533_ M-13 Machinist destroyed. 01536_ Xenon Bombardment Thruster severed. 01537_ Slammed into C-17 Slicer. 01537_ Arm. Huge Wheel broken. 01537_ Destabilizing: Short circuit. 01538_ Slammed into C-17 Slicer. 01542_ Adv. Targeting Computer broken. 01542_ Destabilizing: Short circuit. 01542_ Cesium-ion Thruster destroyed. 01543_ Slammed into C-17 Slicer. 01546_ Destabilizing: System corrupted (+2). 01547_ Slammed into C-17 Slicer. 01548_ Destabilizing: System corrupted (+1). 01549_ Slammed into C-17 Slicer. 01549_ Destabilizing: Core damaged (-14). 01550_ Slammed into C-17 Slicer. 01551_ Cld. VTOL Module severed. Map ----- +----------------------------------------------------+ | # """ """???? ] !#??# #?##### | | # """ """ ## #??# ######## #????# | | # """ """ ## #??# #??????# ###### | | # ## #### #??????# " | | # * # + #??????# "%" | | # ## ######+########## """ | | "" # ## " " " # + """ | | "" ##???#####?# " " " # ####+## """ | | "" #??????????# " " " # #? # | | #??????????#?" " ? # ## !# | | #????????????" " ? # ## # | | #????????????"?" ? # ## # | | #######??????????????? ? # ## # """ | | ?????????????????????? ? # ## # """ | | ????????????????????????# ## # """ | | ??????????????????????# ## # """ | | #?????????????????????# ## # """ | | #?????????????????????# ####### """ | | " #?????????????????????##############????## | | " #???????????????????????????????????????# * | | " #???????????????????????????????????????# | | ?? #???????????????????????????????????????# | | ?? #???????????????????????????????????????# ### | | ???????????????????????????????????????????# #?? | | ?????????????????#### ###################### #?? | | ?????????? [ c@c = g #? | | ??????????????# ################# #? | | ??????????????# ==! """ k #???????????????# # | | ??????????????# k=! """ #???????????????# # | | ??????????????# =! """ r#???????????????# # | | ??????????????# #???????????????# # | | ????????????????? ? #???????????????# # | | ??????????????????? #???????????????# # | | ?????????????????? #???????????????# #"" | | ?????????????????? #???????????????+ #"" | | ?????????????????? #???????????????# #?? | | ????????????????? #???????????????# #?? | | ?????????????????? #???????????????? #?? | | ??????????????????? k????????????????? #?? | | ?????????????????????k ????????????????? ??? | | ??????????????????????? ??????????????????????? | | ?????????????????????????????????????????????????? | | ?????????????????????????????????????????????????? | | ?????????????????????????????????????????????????? | | ?????????????????????????????????????????????????? | | ?????????????????????????????????????????????????? | | ?????????????????????????????????????????????????? | | ?????????????????????????????????????????????????? | | ?????????????????????????????????????????????????? | | ?????????????????????????????????????????????????? | +----------------------------------------------------+ Best States ------------- Heat Dissipation 34 Energy Generation 15 Energy Capacity 265 Matter Stores 300 Matter Capacity 300 Sight Range 16 Terrain Scan Density 10 Evasion (%) 65 Targeting Accuracy 8 Item Schematics ----------------- VTOL Module | -9/Materials | Scanalyzed Robot Schematics ------------------ None Fabricated ------------ VTOL Module | x2 | -7/Factory Alien Tech Used ----------------- None Achievements -------------- None Challenges ------------ None Game ------ Seed MolecularTeleporterDrive Manual? 0 Play Time 00:55:33 Cumulative 58.4 hours Start 2024.11.29 @ 08:40:04 End 2024.11.29 @ 09:35:08 Sessions 1 Manual Loads 0 Difficulty Rogue Special Mode None Game No. 41 Rogue 41 Adventurer 0 Explorer 0 Win Type - Total 0 Types 0/0/0/0/0/0/0/0/0 Lore% 17 Gallery% 35 Achievement% 29 Wizard Run 0 Options --------- Layout 1 ASCII 0 Keyboard 0 Movement Mouse Keybinds 0 Fullscreen 1 Font 24/Smallcaps Map View 50x35 Zoom Use 0% Tactical HUD 1 Map Filters NONE Filters NONE Steam 1 RUN: 01ebb40e-6c1f-49d5-bb1d-9a418b09b7fd